Cogmind - Beta 10.2 @@@ ROGUE MODE // 2020.11.26 @ 13:46:32 Player: Perseus Result: Destroyed by D-53 Grenadier with Mini Grenade Launcher Performance ------------- Evolutions (0) 0 Regions Visited (2) 400 Robots Destroyed (35) 175 Value Destroyed (666) 666 Prototype IDs (0) 0 Alien Tech Used (0) 0 Bonus (0) 0 TOTAL SCORE: 1241 Bonus ------- None Cogmind --------- Core Integrity 0/250 Matter 264/300 Energy 78/100 System Corruption 0% Temperature Cool (0) Movement Core (150) Ox2 Location -10/Mines Parts ------- > --- POWER (1) -------- (None) > --- PROPULSION (2) --- (None) > --- UTILITY (2) ------ Small Storage Unit Terrain Scan Processor > --- WEAPON (2) ------- Beam Cannon > --- INVENTORY (6) ---- Improved Ion Engine Aluminum Leg EM Pulse Gun Peak State ------------ > --- POWER ------------ Improved Ion Engine > --- PROPULSION ------- Aluminum Leg Aluminum Leg > --- UTILITY ---------- Improved Terrain Scanner Seismic Analyzer > --- WEAPON ----------- Assault Rifle Assault Rifle > --- INVENTORY -------- Ion Engine Aluminum Leg Small Storage Unit EM Pulse Gun [Rating: 9] Favorites ----------- Power Improved Ion Engine Engine Improved Ion Engine Propulsion Aluminum Leg Leg Aluminum Leg Utility Improved Terrain Scanner Device Improved Terrain Scanner Storage Small Storage Unit Processor Seismic Analyzer Weapon Assault Rifle Energy Gun Particle Gun Energy Cannon Beam Cannon Ballistic Gun Assault Rifle Launcher Rocket Launcher Build | -11 -10 -10 ------- Run | Scr Mat Min Slots Evolved . | . . . Power . | . . . Propulsion . | . . . Utility . | . . . Weapon . | . . . Parts Attached 24 | 7 10 7 Power 3 | 1 2 . Engine 3 | 1 2 . Core . | . . . Reactor . | . . . Propulsion 7 | 2 4 1 Treads . | . . . Leg 7 | 2 4 1 Wheel . | . . . Hover . | . . . Flight . | . . . Utility 4 | 2 1 1 Device 1 | 1 . . Storage 1 | . 1 . Processor 2 | 1 . 1 Hackware . | . . . Protection . | . . . Artifact . | . . . Weapon 10 | 2 3 5 Energy Gun 3 | . 1 2 Energy Cannon 2 | . 1 1 Ballistic Gun 4 | 2 1 1 Ballistic Cannon . | . . . Launcher 1 | . . 1 Special Weapon . | . . . Impact Weapon . | . . . Slashing Weapon . | . . . Piercing Weapon . | . . . Special Melee Weapon . | . . . Unidentified Prototypes . | . . . Parts Lost 7 | . . 7 Power 1 | . . 1 Propulsion 2 | . . 2 Utility 1 | . . 1 Weapon 3 | . . 3 Highest Loss Streak 7 | . . 7 Average Slot Usage (%) 99 | . 99 97 Engine 13 | . 14 13 Leg 27 | . 28 27 Device 13 | . 14 13 Storage 10 | . 9 14 Processor 3 | . 4 . Energy Gun 4 | . . 14 Ballistic Gun 22 | . 26 12 Naked Turns . | . . . Heaviest Build 17 | 10 17 15 Greatest Support 20 | 20 20 20 Greatest Overweight (x) 3 | . . 3 Average Overweight (x) . | . . . Largest Inventory Capacity 6 | 4 6 6 Average Capacity 5 | 4 5 6 Most Carried 6 | 4 6 6 Average Carried 5 | 3 4 5 Final Capacity 6 | 4 6 6 Final Carried 6 | 3 6 3 Class Distribution -------------------- 67% | Mutant 32% | Scavenger-Mutant Dominant Class ---------------- Mutant | -10/Materials Scavenger-Mutant | -10/Mines Resources | -11 -10 -10 ----------- Run | Scr Mat Min Matter Collected 914 | 289 552 73 Remotely . | . . . Salvage Created 1027 | 139 780 108 Parts 94 | 16 66 12 Haulers Intercepted 2 | . 2 . Recyclers Shooed 5 | 1 2 2 Parts Field Recycled . | . . . Retrieved Matter . | . . . Parts Self-Destructed . | . . . Prevented . | . . . Kills | -11 -10 -10 ------- Run | Scr Mat Min Combat Hostiles Destroyed 12 | . 10 2 Guns 11 | . 10 1 AOE 1 | . . 1 Classes Destroyed 9 | 2 7 . Worker 3 | . 2 1 Builder 2 | . 2 . Tunneler 9 | 5 2 2 Hauler 2 | . 2 . Recycler 2 | 1 1 . Mechanic 1 | . 1 . Operator 1 | . 1 . Watcher 3 | . 3 . Grunt 12 | . 10 2 Best Kill Streak 6 | 6 6 3 Combat Bots Only 2 | . 2 2 Max Kills in Single Turn 2 | 1 2 1 Gunslinging . | . . . Exploded 1 | . . 1 Melee . | . . . Uniques/NPCs Destroyed . | . . . Combat | -11 -10 -10 -------- Run | Scr Mat Min Damage Taken 1033 | . 366 667 Core 267 | . 84 183 Absorbed by Shields . | . . . Core Remaining (%) 100 | 100 . . Volleys Fired 102 | 13 75 14 Largest 2 | 2 2 2 Hottest 85 | 40 60 85 Shots Fired 199 | 26 147 26 Gun 196 | 26 145 25 Cannon 2 | . 2 . Launcher 1 | . . 1 Special . | . . . Kinetic 170 | 26 137 7 Thermal 22 | . 10 12 Explosive 1 | . . 1 Electromagnetic 6 | . . 6 Robot Hit Streak 17 | 6 17 8 Robot Miss Streak 5 | 2 5 4 Penetration Max . | . . . Secondary Targets 1 | . 1 . Max Gunslinging Chain 1 | . 1 . Shots Hit Robots 120 | 15 91 14 Core Hits 58 | 7 41 10 Critical Hits . | . . . Critical Kills . | . . . Critical Parts Destroyed . | . . . Melee Attacks . | . . . Impact . | . . . Slashing . | . . . Piercing . | . . . Sneak Attacks . | . . . Combat Hostiles . | . . . Follow-up Attacks . | . . . Damage Inflicted 1622 | 182 1155 285 Guns 1513 | 182 1155 176 Cannons . | . . . Explosions 109 | . . 109 Melee . | . . . Ramming . | . . . Kinetic 1361 | 182 1145 34 Thermal 215 | . 10 205 Explosive 7 | . . 7 Electromagnetic 39 | . . 39 Impact . | . . . Slashing . | . . . Piercing . | . . . Highest Corruption . | . . . Average Corruption . | . . . Corruption Purged . | . . . Overload Shots . | . . . Overflow Damage 9 | . . 9 Projectiles . | . . . Explosions 9 | . . 9 Melee . | . . . Knockbacks . | . . . Impact . | . . . Kinetic . | . . . Secondary . | . . . Self-Inflicted Damage 140 | . 87 53 Shots 3 | . 1 2 Rammed . | . . . Targets Rammed . | . . . Kicked . | . . . Crushed . | . . . Highest Temperature 138 | . 22 138 Average Temperature 43 | . 8 52 Received Heat Transfer 198 | . 156 42 Siege Activations . | . . . Robots Corrupted . | . . . Combat Hostiles . | . . . Parts Fried . | . . . Impact Corruptions . | . . . Robots Melted . | . . . Combat Hostiles . | . . . Parts Melted . | . . . Heat Transferred 374 | . 25 349 Parts Sabotaged . | . . . Parts Stolen . | . . . Parts Stripped . | . . . Power Chain Reactions . | . . . Missiles Intercepted . | . . . Alert | -11 -10 -10 ------- Run | Scr Mat Min Peak Influence 284 | 30 284 173 Initial 78 | . 19 78 Average 110 | 16 112 140 Maximum Alert Level 1 | . 1 . Low Security (%) 95 | 100 92 100 Level 1 4 | . 7 . Level 2 . | . . . Level 3 . | . . . Level 4 . | . . . Level 5 . | . . . High Security . | . . . Max Security . | . . . Squads Dispatched 5 | . 5 . Investigation 2 | . 2 . Extermination . | . . . Reinforcement 3 | . 3 . Assault . | . . . Garrison . | . . . Intercept . | . . . Construction Impeded . | . . . Haulers Reinforced . | . . . Stealth | -11 -10 -10 --------- Run | Scr Mat Min Distress Signals 1 | . 1 . Communications Jammed . | . . . Distress Signals . | . . . Times Spotted 28 | . 24 4 Peak Tracking Total 4 | . 4 2 Tactical Retreats . | . . . Traps | -11 -10 -10 ------- Run | Scr Mat Min Traps Triggered . | . . . Indirectly . | . . . Trap Hack Attempts . | . . . Triggered . | . . . Disarmed . | . . . Reprogrammed . | . . . Reused . | . . . Traps Extracted . | . . . Installed . | . . . Triggered . | . . . Machines | -11 -10 -10 ---------- Run | Scr Mat Min Machines Disabled 5 | . 3 2 Max in Single Turn 3 | . 3 2 Machines Sabotaged . | . . . Garrisons Compromised . | . . . Overloaded Fab Kills . | . . . Fab Network Shutdowns . | . . . Hacking | -11 -10 -10 --------- Run | Scr Mat Min Machines Accessed 7 | . 7 . Terminals 4 | . 4 . Fabricators . | . . . Repair Stations 1 | . 1 . Recycling Units 2 | . 2 . Scanalyzers . | . . . Garrison Access . | . . . Total Hacks 14 | . 14 . Successful 5 | . 5 . Failed 9 | . 9 . Catastrophic . | . . . Database Lockouts . | . . . Manual 13 | . 13 . Terminals 10 | . 10 . Fabricators . | . . . Repair Stations 2 | . 2 . Recycling Units 2 | . 2 . Scanalyzers . | . . . Garrison Access . | . . . Terminal Hacks . | . . . Fabricator Hacks . | . . . Repair Station Hacks . | . . . Recycling Unit Hacks . | . . . Scanalyzer . | . . . Garrison Access Hacks . | . . . Unauthorized Hacks 5 | . 5 . Terminals 2 | . 2 . Botnet 2 | . 2 . Fabricators . | . . . Repair Stations 1 | . 1 . Mechanics 1 | . 1 . Recycling Units 2 | . 2 . Tunnel 2 | . 2 . Scanalyzers . | . . . Garrison Access . | . . . Data Cores Recovered . | . . . Used . | . . . Hacking Detections 5 | . 5 . Full Trace Events . | . . . Feedback Events . | . . . Feedback Blocked . | . . . Robot Schematics Acquired . | . . . Robots Built . | . . . Matter . | . . . Time . | . . . Total Robot Build Rating . | . . . Part Schematics Acquired . | . . . Parts Built . | . . . Matter . | . . . Time . | . . . Total Part Build Rating . | . . . Parts Repaired . | . . . Time . | . . . Parts Recycled . | . . . Recycled Matter . | . . . Retrieved Matter . | . . . Retrieved Components . | . . . Parts Scanalyzed . | . . . Part Schematics Acquired . | . . . Parts Damaged . | . . . Bothacking | -11 -10 -10 ------------ Run | Scr Mat Min Used RIF Installer . | . . . Robots Hacked . | . . . Non-combat . | . . . Combat . | . . . Robot Hacks Applied . | . . . Relay Couplers Released . | . . . Robots Rewired . | . . . Allies Hacked . | . . . Hacks Repelled . | . . . Allies | -11 -10 -10 -------- Run | Scr Mat Min Total Allies . | . . . Largest Group . | . . . Highest-Rated Group . | . . . Highest-Rated Ally . | . . . Total Orders . | . . . Ally Attacks . | . . . Total Damage . | . . . Kills . | . . . Allies Corrupted . | . . . Allies Melted . | . . . Intel | -11 -10 -10 ------- Run | Scr Mat Min Robot Analysis Total . | . . . Derelict Logs Recovered 2 | . . 2 Drone Launches . | . . . Drone Recoveries . | . . . Exploration | -11 -10 -10 ------------- Run | Scr Mat Min Turns Passed 1362 | 122 900 340 Spaces Moved 820 | 62 521 237 Core 16 | 13 . 3 Treads . | . . . Legs 804 | 49 521 234 Wheels . | . . . Hover . | . . . Flight . | . . . Fastest Speed 50 | 50 120 120 Average Speed 119 | 105 120 120 Slowest Speed 200 | 120 120 200 Overloaded Moves . | . . . Propulsion Burnouts . | . . . Robots Hopped . | . . . Cave-ins Triggered . | . . . Exploration Rate (%) 41 | 3 65 55 Regions Visited 2 Branch Regions 1 Pre-discovered Areas 4 | . 2 2 Known Exits Taken . | . . . Unknown Exits Taken 2 | 1 1 . Scrap Searched . | . . . Spaces Dug . | . . . Terrain Destroyed 72 | . 45 27 Melee . | . . . Projectile . | . . . AOE 72 | . 45 27 Terrain Rammed . | . . . Walls Destroyed . | . . . Machines Disabled . | . . . Actions | -11 -10 -10 --------- Run | Scr Mat Min Total 1008 | 92 652 264 Wait 36 | . 33 3 Move 818 | 61 520 237 Hop . | . . . Pick Up 16 | 10 5 1 Fast Attach 4 | 1 2 1 Attach 10 | 6 1 3 Detach . | . . . Swap 10 | . 7 3 Drop 12 | 1 9 2 Fire 102 | 13 75 14 Melee . | . . . Ram . | . . . Kick . | . . . Crush . | . . . Escape Stasis . | . . . Rewire . | . . . Trap . | . . . Miscellaneous . | . . . Route ------- -11/Scrapyard -10/Materials (discovered 2 exits: [*Mat] / [*Min]) -10/Mines (discovered 1 exit: [*Mat]) History --------- Turn | Location | Event 6 | -11/Scrapyard | Discovered new exit (range 15) 123 | -11/Scrapyard | Entered Materials 311 | -10/Materials | Build established: Mutant 633 | -10/Materials | Discovered new exit (range 9) 966 | -10/Materials | Discovered new exit (range 16) 1023 | -10/Materials | Entered Mines 1038 | -10/Mines | Discovered new exit (range 12) 1045 | -10/Mines | Received a Rocket Launcher from a helpful Derelict 1080 | -10/Mines | Learned location of Zion (-7) 1204 | -10/Mines | Build established: Scavenger-Mutant 1216 | -10/Mines | Learned location of Mines (-8) 1296 | -10/Mines | Assembled infested the area 1301 | -10/Mines | Assisted by a Guerilla fighting off Assembled 1355 | -10/Mines | Core integrity fell below 50% 1361 | -10/Mines | Core integrity fell below 20% 1363 | -10/Mines | Destroyed by D-53 Grenadier with Mini Grenade Launcher Last Messages --------------- 01313_ 40-HWU(h): "I'll hold them off! Go on ahead or try to find another way!" 01314_ 40-HWU(h) knocked back. 01319_ 40-HWU(h) destroyed. 01322_ K-01 Serf collects debris. 01346_ Imp. Terrain Scanner destroyed. 01347_ R-06 Scavenger destroyed. 01351_ The unstable cave ceiling collapses. 01351_ Particle Gun destroyed. 01352_ Aluminum Leg destroyed. 01354_ Assault Rifle destroyed. 01354_ Ion Engine destroyed. 01356_ D-53 Grenadier destroyed. 01357_ The unstable cave ceiling collapses. 01360_ U-05 Engineer lays Concrete. 01360_ Rocket Launcher destroyed. 01360_ Destroyed Rocket Launcher. 01361_ U-05 Engineer lays Concrete. 01362_ The unstable cave ceiling collapses. 01362_ U-05 Engineer lays Concrete. Map ----- +----------------------------------------------------+ | ?????????????????????????????????????????????????? | | ?????????????????????????????????????????????????? | | ?????????????????????????????????????????????????? | | ?????????????????????????????????????????????????? | | ?????????????????????????????????????????????????? | | ???????????????????????????###???????????????????? | | ??????????????????????????# ???????????????????? | | ?????????????????????##??? ????????????????????? | | ????????????????????## ??? ????????????????????? | | ???????????????????## """ ????????????????????? | | ???????????????????# """ ???#????????????????? | | ???????????????????? """ ?????????#???????????? | | ????????????????????? ??????? ?????????????? | | ????????????????????? ?????#???????????????? | | ?????????????????????? #?????????????????????? | | ????????????????#????## #?????????????????????? | | ??????????????????????# ##??????? ????????????? | | ?????????????#????????# #????????????????????? | | ???????????????????#??# ##??#????????????????? | | ???????????#????????### #????????????????????? | | ??????????????????#### ##?#??????????????????? | | ???????????#?????## ####?????? ??????????? | | ?????????????????# #### ##???????? | | ?????????#???????# %= #????????? | | ?????????????????# ### = #????????? | | ?????????????????# @d # #??? ?? #??????????? | | ?????????????????# #??# ## #????? #??? | | ?????####?####???# #?? ???? #?? | | ????## ## ##??# ### ?? #? | | ???## ##?# #?? #????? # | | ???# #?# u=### #?????? | | ???# #?## =%! #???#??# | | ??## #?### * #####??# | | ?## #??# ### ### #### #### | | ## ##??# #######?####?# ### ## | | ?# ##### #?##???#?????# ## | | ?# ! = ##??????#?#??# | | ?## #######?####???????##### # | | ??# #?#?#??## ##???????????##### # | | ?## ##?????## #??????#???#???#?# | | ?# ##??????# ####????????#?????# | | ?# #?#?????# #???????#?????### # | | ?## #???????# ### #???????######### # | | ??# ##????### #?# ######### # | | ??# ##???#?## ##?# # | | ?## ##???#### ###?########"## ##"###### # | | ?# ##???## ###?#?#????#" "#????## # | | ?# ##???# ##?????#????## "#?????#### | | ?# ##### ####???????????#" ##???#???? | | ?# ## ##???#????????#?## #???????# | +----------------------------------------------------+ Best States ------------- Heat Dissipation 25 Energy Generation 12 Energy Capacity 265 Matter Stores 300 Matter Capacity 300 Sight Range 16 Terrain Scan Range 16 Terrain Scan Density 85 Evasion (%) 50 Item Schematics ----------------- None Robot Schematics ------------------ None Fabricated ------------ Nothing Alien Tech Used ----------------- None Achievements -------------- None Challenges ------------ None Game ------ Seed PointyRecoilClaws Manual? 0 Play Time 00:21:52 Cumulative 123.1 hours Start 2020.11.26 @ 10:03:23 End 2020.11.26 @ 13:46:32 Sessions 3 Manual Loads 0 Difficulty Rogue Special Mode None Game No. 37 Rogue 14 Adventurer 23 Explorer 0 Win Type - Total 5 Types 5/0/0/0/0/0/0/0/0 Lore% 79 Gallery% 80 Achievement% 62 Wizard Run 0 Options --------- ASCII 0 Keyboard 0 Movement Mouse Keybinds 0 Fullscreen 1 Font 18/SmallcapsGlow Map View 76x50 Tactical HUD 1 Map Filters NONE Filters NONE Steam 1 RUN: ee0ccf92-feb6-40ef-858f-4ec7787fde03